Cogmind - Beta 17 @@@ ROGUE MODE // 2026.07.12 @ 22:24:19 Player: KN-OKO Result: Destroyed by G-67 Veteran with Plasma Rifle Performance ------------- Evolutions (7) 3500 Regions Visited (15) 3000 Robots Destroyed (209) 1045 Value Destroyed (9177) 9177 Prototype IDs (33) 660 Alien Tech Used (0) 0 Bonus (17861) 17861 TOTAL SCORE: 35243 Bonus ------- High Alert Combat Kills 901 Follower Combat Kills 460 Prayed to X0-1V1 5000 Major X0-1V1 Interference 11200 Met Data Miner 300 Cogmind --------- Core Integrity 0/1050 Matter 614/800 Energy 86/100 System Corruption 33% Temperature Cool (0) Movement Core (100) Ox1 Location -3/Quarantine Parts ------- > --- POWER (2) -------- (None) > --- PROPULSION (6) --- (None) > --- UTILITY (11) ----- Core Analyzer Active Sensor Spoofer (fused) Self-contained Transmogrifier > --- WEAPON (3) ------- Molecular Scythe > --- INVENTORY (5) ---- High-capacity Storage Unit High-capacity Matter Pod (200) Experimental EM Disruption Field Long-range Tractor Beam Compact HERF Cannon Peak State ------------ > --- POWER ------------ Hybrid Antimatter Reactor Light Quantum Reactor > --- PROPULSION ------- Multireflex Exoskeleton Medium Armored Exoskeleton Improved Thunder Leg > --- UTILITY ---------- Coolant Network High-capacity Storage Unit Advanced Energy Well Advanced Gravity Neutralizer Core Analyzer Heavy Servo Lattice Advanced Weapon Cycler Powered Armor Self-contained Transmogrifier X0-1V1's Piety Tracker > --- WEAPON ----------- Heavy Phase Cannon Nova Cannon Railgun > --- INVENTORY -------- Multireflex Exoskeleton Multireflex Exoskeleton Multireflex Exoskeleton Myomer Leg Myomer Leg Biometal Leg Biometal Leg Biometal Leg Experimental Heat Sink High-capacity Matter Pod Long-range Tractor Beam Proton Cannon Nova Cannon Railgun Railgun Mass Driver [Rating: 167] Favorites ----------- Power Enhanced Nuclear Core Engine Ion Engine Power Core Enhanced Nuclear Core Reactor Hybrid Antimatter Reactor Propulsion Light Treads Treads Light Treads Leg Multireflex Exoskeleton Wheel Armored Huge Wheel Hover Unit Gyrokinetic Inverter Flight Unit Surge Thruster Utility X0-1V1's Piety Tracker Device X0-1V1's Piety Tracker Storage High-capacity Storage Unit Processor Core Analyzer Hackware Authchip [R/Combat] Protection Hardened Heavy Armor Plating Weapon Light Assault Rifle Energy Gun Wave Gun Energy Cannon Nova Cannon Ballistic Gun Light Assault Rifle Ballistic Cannon Antimatter Cannon Launcher Compact Tesla Bomb Launcher Special Weapon Plasma Flamer Impact Weapon Thunder Hammer Slashing Weapon Chainsword Build | -11 -10 -10 -10 -9 -8 -7 -6 -6 -6 -6 -5 -5 -4 -3 -3 ------- Run | Yrd Mat Min Exi Min Mat Fac Fac Low Low Dat Pro Fac Fac Res Qua Slots Evolved 14 | . . . . . 4 2 2 . . . . 2 2 2 . Power 1 | . . . . . . 1 . . . . . . . . . Propulsion 4 | . . . . . 2 . . . . . . . . 2 . Utility 8 | . . . . . 1 1 2 . . . . 2 2 . . Weapon 1 | . . . . . 1 . . . . . . . . . . Parts Attached 152 | 7 7 4 1 1 7 28 5 6 2 . 3 9 14 46 12 Power 17 | 1 1 . . 1 . 6 . . . . 2 . 1 5 . Engine 6 | 1 1 . . 1 . 3 . . . . . . . . . Core 6 | . . . . . . 3 . . . . 2 . 1 . . Reactor 5 | . . . . . . . . . . . . . . 5 . Propulsion 39 | 2 3 . . . 3 6 . . 2 . . 1 1 16 5 Treads 19 | 1 3 . . . 3 4 . . 1 . . 1 1 4 1 Leg 14 | . . . . . . . . . . . . . . 11 3 Wheel 5 | 1 . . . . . 2 . . 1 . . . . . 1 Hover 1 | . . . . . . . . . . . . . . 1 . Flight . | . . . . . . . . . . . . . . . . Utility 53 | 2 2 1 1 . 1 7 3 1 . . 1 6 9 15 4 Device 30 | 1 1 1 . . 1 3 2 . . . 1 5 3 8 4 Storage 4 | 1 1 . 1 . . . . . . . . . . 1 . Processor 7 | . . . . . . 1 . 1 . . . . 3 2 . Hackware 1 | . . . . . . . . . . . . . . 1 . Protection 11 | . . . . . . 3 1 . . . . 1 3 3 . Artifact . | . . . . . . . . . . . . . . . . Weapon 43 | 2 1 3 . . 3 9 2 5 . . . 2 3 10 3 Energy Gun 9 | 2 . . . . 2 3 . 2 . . . . . . . Energy Cannon 7 | . . . . . . . 1 . . . . . . 4 2 Ballistic Gun 10 | . 1 2 . . 1 2 . . . . . . 1 3 . Ballistic Cannon 9 | . . . . . . 1 1 1 . . . 2 1 3 . Launcher 3 | . . 1 . . . . . 1 . . . . 1 . . Special Weapon . | . . . . . . . . . . . . . . . . Impact Weapon 1 | . . . . . . 1 . . . . . . . . . Slashing Weapon 4 | . . . . . . 2 . 1 . . . . . . 1 Piercing Weapon . | . . . . . . . . . . . . . . . . Special Melee Weapon . | . . . . . . . . . . . . . . . . Unidentified Prototypes 11 | . 1 . . . . 2 1 1 . . . . . 4 2 Parts Lost 63 | . 1 1 . . 3 3 2 . 2 . . 4 6 27 14 Power 6 | . . . . . . 1 . . . . . . 1 3 1 Propulsion 19 | . 1 . . . 1 1 . . 2 . . 1 . 5 8 Utility 24 | . . 1 . . . 1 1 . . . . 3 3 11 4 Weapon 14 | . . . . . 2 . 1 . . . . . 2 8 1 Highest Loss Streak 12 | . 1 1 . . 3 1 1 . 2 . . 2 2 12 7 To Critical Strikes 2 | . . . . . . . . . . . . . . 1 1 Average Backups 14 | 3 8 10 10 10 10 15 16 16 17 18 18 16 15 14 4 Power 1 | . 1 1 1 1 1 . 2 2 2 2 1 . 1 1 . Propulsion 3 | 2 3 5 5 5 3 3 3 3 2 2 2 4 4 5 2 Utility 5 | . 2 3 3 3 4 6 5 6 8 9 9 7 5 3 2 Weapon 4 | . 1 1 1 1 1 4 5 5 5 5 5 4 4 5 . Tool/Special . | . . . . . . . . . . . . . . . . Unused Backups 22 | . 6 . . . . 4 1 3 . . 1 . 2 4 1 Power 5 | . 1 . . . . 1 . . . . . . 2 1 . Propulsion 6 | . 4 . . . . . . . . . . . . 2 . Utility 4 | . . . . . . 1 1 . . . 1 . . . 1 Weapon 7 | . 1 . . . . 2 . 3 . . . . . 1 . Tool/Special . | . . . . . . . . . . . . . . . . Average Slot Usage (%) 86 | . 100 97 100 100 98 94 86 86 86 87 87 86 93 79 46 Engine 3 | . 13 12 12 12 8 9 . . . . . . 2 . . Core 5 | . . . . . . 4 11 12 12 12 12 9 6 . . Reactor 1 | . . . . . . . . . . . . . . 8 3 Treads 11 | . 23 25 25 25 32 18 11 12 12 12 11 4 1 1 . Leg 3 | . . . . . . . . . . . . . . 10 14 Wheel 3 | . 3 . . . . 4 5 6 5 6 6 8 5 . . Device 20 | . 15 22 25 25 24 20 23 18 18 18 18 25 23 18 12 Storage 7 | . 13 12 12 12 8 6 5 6 6 6 6 5 5 7 5 Processor 5 | . . . . . . . . 5 6 6 6 5 12 12 4 Protection 4 | . . . . . . 6 5 6 6 6 6 6 10 4 . Energy Gun 5 | . 20 3 . . 1 11 11 5 5 6 5 3 . . . Ballistic Gun 4 | . 7 20 25 25 22 7 1 . . . . . 4 1 . Ballistic Cannon 5 | . . . . . . 1 3 11 12 12 12 9 9 3 . Peak Build Rating 167 | 7 21 21 21 22 32 65 77 79 80 80 86 97 120 167 96 Average Rating 81 | 4 18 18 21 21 29 48 72 76 78 80 80 92 110 150 81 On Entrance 54 | . 7 21 21 21 22 32 64 73 79 80 80 84 97 113 75 Avg Prop Armor Cover (%) 8 | 17 13 . . . . 11 7 7 7 7 6 3 3 7 20 Naked Turns . | . . . . . . . . . . . . . . . . Heaviest Build 150 | 13 19 19 49 51 57 81 102 106 105 103 104 106 117 150 67 Greatest Support 130 | 10 40 40 40 40 80 80 28 28 40 28 40 40 28 130 128 Greatest Overweight (x) 9 | 1 1 . 1 1 . 2 3 3 3 3 3 8 9 3 2 Average Overweight (x) 1 | . . . . 1 . 1 3 3 2 3 2 3 3 . . Largest Inventory Capacity 20 | 8 10 10 20 20 20 20 20 20 20 20 20 20 20 20 20 Average Capacity 18 | 7 9 10 12 20 20 20 20 20 20 20 20 20 20 20 19 Most Carried 20 | 6 10 10 10 10 14 20 19 20 19 19 20 20 20 20 8 Average Carried 15 | 4 8 10 10 10 10 17 17 17 18 19 19 16 17 17 5 Final Capacity 20 | 8 10 10 20 20 20 20 20 20 20 20 20 20 20 20 5 Final Carried 20 | 6 10 10 10 10 12 16 18 19 19 19 20 18 19 6 5 Transmogrified Parts 55 | . . . . . . . . . . . 2 13 11 19 10 Integrity Recovered 1479 | . . . . . . . . . . . 38 352 219 342 528 Class Distribution -------------------- 43% | Tank 16% | Gunner 15% | Mutant 10% | Scavenger-Tank 8% | Scavenger-Mutant 3% | Scavenger-Gunner Dominant Class ---------------- Mutant | -10/Materials Scavenger-Mutant | -10/Mines Scavenger-Mutant | -10/Exiles Scavenger-Mutant | -9/Mines Scavenger-Gunner | -8/Materials Scavenger-Tank | -7/Factory Tank | -6/Factory Tank | -6/Lower Caves Tank | -6/Lower Caves Tank | -6/Data Miner Tank | -5/Proximity Caves Tank | -5/Factory Tank | -4/Factory Gunner | -3/Research Mutant | -3/Quarantine Resources | -11 -10 -10 -10 -9 -8 -7 -6 -6 -6 -6 -5 -5 -4 -3 -3 ----------- Run | Yrd Mat Min Exi Min Mat Fac Fac Low Low Dat Pro Fac Fac Res Qua Matter Collected 7569 | 270 297 45 45 20 311 698 173 474 359 . 619 502 1306 1950 500 Remotely 985 | . . . . . . . . . . . 78 162 657 88 . Salvage Created 8247 | 92 391 45 . . 376 714 263 540 120 . 456 649 1387 3009 205 Parts 387 | 6 24 11 . . 25 34 14 17 6 . 15 39 48 137 11 Haulers Intercepted 4 | . 1 . . . . 1 . . . . . . 2 . . Recyclers Shooed 3 | 1 . . . . . . . . . . . 1 1 . . Parts Field Recycled . | . . . . . . . . . . . . . . . . Retrieved Matter . | . . . . . . . . . . . . . . . . Parts Self-Destructed 24 | . . . . . . . . 9 6 . 9 . . . . Prevented 6 | . . . . . . . . 6 . . . . . . . Parts Restored . | . . . . . . . . . . . . . . . . Kills | -11 -10 -10 -10 -9 -8 -7 -6 -6 -6 -6 -5 -5 -4 -3 -3 ------- Run | Yrd Mat Min Exi Min Mat Fac Fac Low Low Dat Pro Fac Fac Res Qua Combat Hostiles Destroyed 170 | . 10 6 . . 11 16 7 16 7 . 16 17 20 41 3 Melee 1 | . . . . . . 1 . . . . . . . . . Guns 45 | . 10 2 . . 8 11 3 . . . 2 1 6 2 . Cannons 65 | . . . . . . 3 4 6 3 . 5 6 9 28 1 AOE 49 | . . 4 . . 3 . . 10 4 . 9 7 5 6 1 Classes Destroyed 15 | 2 4 . . . 1 5 . 1 . . . . 1 1 . Worker 13 | . . . . . . 2 1 . . . . 4 3 3 . Builder 10 | . . . . . . 1 . . . . . 1 2 5 1 Tunneler 2 | 2 . . . . . . . . . . . . . . . Hauler 4 | . 1 . . . . 1 . . . . . . 2 . . Recycler 4 | 1 . . . . . . . . . . . . 2 1 . Mechanic 1 | . . . . . . . . . . . . . 1 . . Operator 1 | . . . . . . . . . . . . . . 1 . Watcher 3 | . 1 . . . . 1 . . . . . . 1 . . Swarmer 42 | . 3 6 . . 3 3 3 4 4 . 5 4 5 . 2 Grunt 61 | . 7 . . . 7 5 2 4 3 . 8 6 4 15 . Brawler 4 | . . . . . . . . 3 . . 1 . . . . Duelist 7 | . . . . . . 1 . 2 1 . 1 1 . 1 . Sentry 16 | . . . . . 1 3 . 1 . . 1 . 2 7 1 Hunter 13 | . . . . . . 1 1 2 . . . 3 . 6 . Programmer 25 | . . . . . . 3 1 . . . . 3 6 12 . Thug 3 | . . . . . . . . . . . . . 3 . . Best Kill Streak 13 | 3 3 6 . . 5 5 3 9 4 . 5 13 7 9 3 Combat Bots Only 9 | . 3 6 . . 5 5 3 9 4 . 5 9 5 6 3 Max Kills in Single Turn 5 | 1 1 2 . . 2 2 1 4 4 . 2 5 5 2 1 Gunslinging 1 | . . 1 . . . 1 . . . . . . . . . Exploded 5 | . . 2 . . 2 . . 4 4 . 2 3 5 2 1 Melee 1 | . . . . . . 1 . . . . . . . . . Uniques/NPCs Destroyed . | . . . . . . . . . . . . . . . . Combat | -11 -10 -10 -10 -9 -8 -7 -6 -6 -6 -6 -5 -5 -4 -3 -3 -------- Run | Yrd Mat Min Exi Min Mat Fac Fac Low Low Dat Pro Fac Fac Res Qua Hostile Shots Fired 1594 | . 40 28 . . 47 119 47 30 30 . 44 111 151 639 308 Missed 523 | . 10 10 . . 11 27 11 8 2 . 16 22 35 227 144 Hits 1071 | . 30 18 . . 36 92 36 22 28 . 28 89 116 412 164 Melee 43 | . . . . . . 2 . . 2 . . 9 . 30 . Projectile 1028 | . 30 18 . . 36 90 36 22 26 . 28 80 116 382 164 Critical Strikes 62 | . 1 . . . . 3 . 1 2 . 1 2 10 26 16 Actively Blocked 12 | . . . . . . . . . . . . . 7 5 . Part Disruptions 6 | . . . . . . 1 . . . . . . 1 3 1 Damage Taken 17754 | . 358 155 . . 563 1282 454 321 420 . 405 1037 1724 7664 3371 Core 2139 | . 37 59 . . 47 158 . 12 15 . 27 64 163 640 917 Absorbed by Shields 1767 | . . . . . . . 168 116 148 . 151 392 560 232 . Ignored by Resistances 386 | . . . . . . . . . . . . 239 99 7 41 Regen/Repaired (Parts) 38 | . . . . . . 32 . . . . . . . 6 . Core Remaining (%) 83 | 100 . . . 61 88 71 . . . . 91 91 81 . . Volleys Fired 564 | 4 50 7 . . 33 45 25 42 15 . 29 49 77 164 24 Largest 4 | 2 2 2 . . 3 4 3 3 3 . 3 3 4 3 1 Hottest 263 | 80 80 80 . . 105 202 182 158 158 . 158 168 220 263 94 Shots Fired 1146 | 8 100 12 . . 94 140 41 61 30 . 49 85 187 315 24 Gun 516 | 8 100 10 . . 92 127 16 12 3 . 12 13 55 68 . Cannon 566 | . . . . . . 13 25 43 26 . 20 67 118 230 24 Launcher 51 | . . 2 . . 2 . . 6 1 . 17 5 1 17 . Special 13 | . . . . . . . . . . . . . 13 . . Kinetic 689 | . 45 . . . 88 75 18 33 26 . 20 54 173 157 . Thermal 349 | 8 55 10 . . 4 65 16 12 3 . 12 13 13 138 . Explosive 33 | . . 2 . . 2 . . 6 1 . 17 5 . . . Electromagnetic 75 | . . . . . . . 7 10 . . . 13 1 20 24 Robot Hit Streak 24 | 4 13 2 . . 24 14 14 10 11 . 11 9 11 11 5 Robot Miss Streak 11 | 1 2 3 . . 3 11 7 2 2 . 2 5 7 6 5 Penetration Max 2 | . . . . . . . . . . . . 1 1 2 . Secondary Targets 10 | . 1 1 . . . 3 . . . . . . . 5 . Max Gunslinging Chain 1 | . 1 1 . . . 1 . . . . . . . 1 . Shots Hit Robots 695 | 6 73 3 . . 70 109 24 39 20 . 24 39 99 177 12 Core Hits 400 | 4 24 7 . . 27 59 14 34 10 . 32 34 54 96 5 Critical Kills 5 | . . . . . . 1 . . . . . . 2 2 . Critical Parts Destroyed 3 | . . . . . . 1 . . . . . . 2 . . Critical Strikes 47 | . . . . . . 6 1 1 1 . 1 3 20 14 . Burn 4 | . . . . . . 2 . . . . . . 2 . . Meltdown 2 | . . . . . . . . . . . . . . 2 . Destroy 6 | . . . . . . 2 . . . . . . 4 . . Blast 32 | . . . . . . 1 . 1 1 . 1 3 14 11 . Corrupt 2 | . . . . . . . 1 . . . . . . 1 . Sever 1 | . . . . . . 1 . . . . . . . . . Melee Attacks 16 | . . . . . . 6 2 1 . . . . . 5 2 Impact 2 | . . . . . . 1 . . . . . . . 1 . Slashing 14 | . . . . . . 5 2 1 . . . . . 4 2 Piercing . | . . . . . . . . . . . . . . . . Sneak Attacks 3 | . . . . . . 2 1 . . . . . . . . Combat Hostiles . | . . . . . . . . . . . . . . . . Follow-up Attacks . | . . . . . . . . . . . . . . . . Damage Inflicted 25589 | 65 723 296 . . 915 2184 693 2191 909 . 2301 2525 3958 8283 546 Guns 6650 | 65 719 32 . . 711 1644 290 260 48 . 213 117 1296 1255 . Cannons 11823 | . . . . . . 287 325 773 621 . 388 1195 2008 5882 344 Explosions 6479 | . . 259 . . 204 . . 1158 240 . 1700 1213 496 1111 98 Melee 355 | . . . . . . 229 78 . . . . . . . 48 Ramming 124 | . 4 5 . . . 24 . . . . . . . 35 56 Kinetic 11784 | . 269 . . . 651 1095 262 551 621 . 388 802 3304 3841 . Thermal 6164 | 65 450 32 . . 60 836 290 260 48 . 213 172 158 3482 98 Explosive 5117 | . . 259 . . 204 . . 1158 240 . 1700 1158 398 . . Electromagnetic 2045 | . . . . . . . 63 222 . . . 393 98 925 344 Impact . | . . . . . . . . . . . . . . . . Slashing 355 | . . . . . . 229 78 . . . . . . . 48 Piercing . | . . . . . . . . . . . . . . . . Highest Corruption 40 | . . . . . . 16 . . . . . 7 11 39 40 Average Corruption 20 | . . . . . . 8 . . . . . 6 7 23 35 Corruption Purged 3 | . . . . . . . . . . . . . . 3 . Corruption Blocked . | . . . . . . . . . . . . . . . . Effects 205 | . . . . . . 11 . . . . . 10 22 120 42 Message Errors 37 | . . . . . . 3 . . . . . 1 2 20 11 Matter Fused 36 | . . . . . . 2 . . . . . 3 7 17 7 Heat Flow Errors 17 | . . . . . . 1 . . . . . . 2 11 3 Energy Discharges 22 | . . . . . . . . . . . . 3 4 11 4 Parts Rejected 7 | . . . . . . . . . . . . . . 6 1 Parts Fused 1 | . . . . . . . . . . . . . . 1 . Data Loss (minor) 25 | . . . . . . 1 . . . . . . 3 15 6 Data Loss (major) 5 | . . . . . . . . . . . . 1 . 4 . Misfires 12 | . . . . . . 3 . . . . . 1 . 7 1 Alerts 6 | . . . . . . 1 . . . . . . . 4 1 Misdirections 11 | . . . . . . . . . . . . . . 4 7 Weapon Failures 26 | . . . . . . . . . . . . 1 4 20 1 Overload Shots . | . . . . . . . . . . . . . . . . Overflow Damage 572 | . . 8 . . 25 54 38 . 34 . 80 52 97 184 . Projectiles 336 | . . . . . . 12 . . 34 . . 32 77 181 . Explosions 156 | . . 8 . . 25 . . . . . 80 20 20 3 . Melee 80 | . . . . . . 42 38 . . . . . . . . Knockbacks 60 | . . . . . . 2 3 4 6 . 1 9 13 21 1 Impact 1 | . . . . . . . . . . . . . . . 1 Kinetic 55 | . . . . . . 2 3 4 6 . 1 6 13 20 . Secondary 4 | . . . . . . . . . . . . 3 . 1 . Self-Inflicted Damage 439 | . . . . . 31 8 . . . . 13 121 . 228 38 Shots 14 | . . . . . 1 . . . . . 1 2 . 9 1 Rammed 9 | . 1 1 . . . 3 . . . . . . . . 4 Targets Rammed 14 | . 1 1 . . . 3 . . . . . . . 2 7 Kicked 5 | . . . . . . . . . . . . . . 2 3 Crushed . | . . . . . . . . . . . . . . . . Highest Temperature 378 | 54 117 90 . . 35 378 263 258 213 . 349 306 211 248 202 Average Temperature 78 | 25 40 47 . . 6 103 87 95 100 . 101 110 37 64 88 Received Heat Transfer 2149 | . 195 . . . 261 363 48 80 184 . 100 151 169 487 111 Effects 4 | . . . . . . . 1 . . . . 3 . . . Shutdowns 1 | . . . . . . . . . . . . 1 . . . Energy Bleed 1 | . . . . . . . 1 . . . . . . . . Interference 2 | . . . . . . . . . . . . 2 . . . Siege Activations . | . . . . . . . . . . . . . . . . Martial Activations . | . . . . . . . . . . . . . . . . Shielding Activations . | . . . . . . . . . . . . . . . . Robots Disrupted . | . . . . . . . . . . . . . . . . Combat Hostiles . | . . . . . . . . . . . . . . . . Robots Corrupted 7 | . . . . . . . . . . . . 3 . 3 1 Combat Hostiles 7 | . . . . . . . . . . . . 3 . 3 1 Parts Fried 22 | . . . . . . . 3 . . . . 9 . 9 1 Impact Corruptions . | . . . . . . . . . . . . . . . . Robots Melted 3 | . . . . . . 1 . . . . . . . 2 . Combat Hostiles 3 | . . . . . . 1 . . . . . . . 2 . Parts Melted 18 | . 3 . . . . 3 . 1 . . . 1 . 10 . Heat Transferred 9515 | 150 1025 75 . . 148 1947 597 497 74 . 312 274 1280 3136 . Parts Sabotaged . | . . . . . . . . . . . . . . . . Parts Stolen 5 | . . . . . . . . . . . . 3 . 2 . Parts Stripped . | . . . . . . . . . . . . . . . . Power Chain Reactions 5 | . . . . . . . . . . . . 1 . 3 1 Alert | -11 -10 -10 -10 -9 -8 -7 -6 -6 -6 -6 -5 -5 -4 -3 -3 ------- Run | Yrd Mat Min Exi Min Mat Fac Fac Low Low Dat Pro Fac Fac Res Qua Maximum Alert Level 3 | . . . . . . 2 1 . . . . 2 3 3 2 Low Security (%) 46 | 100 100 100 . 100 100 74 90 . . . . 32 18 . 12 Level 1 34 | . . . . . . 14 9 . . . . 25 50 64 74 Level 2 17 | . . . . . . 11 . . . . . 42 22 30 12 Level 3 2 | . . . . . . . . . . . . . 8 5 . Level 4 . | . . . . . . . . . . . . . . . . Level 5 . | . . . . . . . . . . . . . . . . High Security . | . . . . . . . . . . . . . . . . Max Security . | . . . . . . . . . . . . . . . . Peak Influence 860 | 10 75 154 . . 151 483 225 . . . . 599 758 860 434 Initial 434 | . 3 22 . . . 57 225 . . . . 77 192 392 434 Average 241 | 1 25 78 . . 75 104 140 . . . . 326 368 412 297 Influence Increases 6355 | 15 291 152 . . 357 798 217 479 160 . 425 856 1020 1344 241 Destroy 0b10 Robot/C 3660 | . 200 120 . . 260 400 140 400 140 . 320 380 400 840 60 Destroy 0b10 Robot/NC 205 | 15 10 . . . . 30 5 5 . . . 25 55 50 10 Destroy Leader 664 | . 44 20 . . 60 94 30 20 20 . 30 80 76 180 10 Allied During Kill 62 | . . . . . 5 21 . 24 . . . 6 . 4 2 Successful Hack 49 | . 7 . . . 14 14 . . . . . . 12 2 . Disable Machine 315 | . . . . . . . . . . . . 90 165 30 30 Destroy Structure 520 | . . 12 . . 18 4 12 . . . . 104 138 208 24 Partial Spotted 30 | . . . . . . . . . . . . . . 15 15 Lose Combat Pursuer 360 | . 30 . . . . 75 30 30 . . 75 15 . 15 90 Miscellaneous 490 | . . . . . . 160 . . . . . 156 174 . . Influence Decreases 6194 | 10 238 206 4 . 230 465 541 491 284 . 302 586 665 1320 852 Entered New Map 1364 | . 2 36 4 . . 70 235 51 25 . . 46 201 356 338 Time Decay 3839 | 10 208 160 . . 160 331 286 440 239 . 302 351 404 654 294 Lost Part 613 | . . 10 . . 30 24 20 . 20 . . 39 60 270 140 Lost Ally 200 | . . . . . 40 40 . . . . . . . 40 80 Purge Threat 178 | . 28 . . . . . . . . . . 150 . . . Squads Dispatched 38 | . 3 . . . 3 4 1 . . . . 4 3 12 8 Investigation 6 | . 2 . . . 2 . . . . . . . . 1 1 Extermination 12 | . . . . . . 2 . . . . . 1 2 6 1 Reinforcement 20 | . 1 . . . 1 2 1 . . . . 3 1 5 6 Assault . | . . . . . . . . . . . . . . . . Garrison . | . . . . . . . . . . . . . . . . Intercept . | . . . . . . . . . . . . . . . . Searches Triggered . | . . . . . . . . . . . . . . . . Construction Impeded 4 | . . . . . . . . . . . . 1 . 3 . Haulers Reinforced 2 | . . . . . . 1 . . . . . 1 . . . Active Scanning Responses . | . . . . . . . . . . . . . . . . Cargo Convoy Interrupts . | . . . . . . . . . . . . . . . . Stealth | -11 -10 -10 -10 -9 -8 -7 -6 -6 -6 -6 -5 -5 -4 -3 -3 --------- Run | Yrd Mat Min Exi Min Mat Fac Fac Low Low Dat Pro Fac Fac Res Qua Distress Signals 13 | . 2 . . . 2 2 . . . . . . 2 4 1 Communications Jammed . | . . . . . . . . . . . . . . . . Distress Signals . | . . . . . . . . . . . . . . . . Times Spotted 281 | . 15 6 . . 15 26 14 21 3 . 19 32 27 64 39 Peak Tracking Total 14 | . 4 6 . . 7 6 5 9 3 . 4 7 5 6 14 Tactical Retreats 18 | . 2 . . . . 5 2 1 . . 3 1 . 1 3 Traps | -11 -10 -10 -10 -9 -8 -7 -6 -6 -6 -6 -5 -5 -4 -3 -3 ------- Run | Yrd Mat Min Exi Min Mat Fac Fac Low Low Dat Pro Fac Fac Res Qua Traps Triggered 13 | . . . . . 2 4 . . . . . . 1 4 2 Indirectly 1 | . . . . . . . . . . . . . . 1 . Trap Hack Attempts . | . . . . . . . . . . . . . . . . Triggered . | . . . . . . . . . . . . . . . . Disarmed . | . . . . . . . . . . . . . . . . Reprogrammed . | . . . . . . . . . . . . . . . . Reused . | . . . . . . . . . . . . . . . . Traps Extracted . | . . . . . . . . . . . . . . . . Installed . | . . . . . . . . . . . . . . . . Triggered . | . . . . . . . . . . . . . . . . Machines | -11 -10 -10 -10 -9 -8 -7 -6 -6 -6 -6 -5 -5 -4 -3 -3 ---------- Run | Yrd Mat Min Exi Min Mat Fac Fac Low Low Dat Pro Fac Fac Res Qua Machines Disabled 23 | . . . . . . . . 2 . . . 6 11 2 2 Max in Single Turn 4 | . . . . . . . . 1 . . . 4 3 1 1 Garrison Access 1 | . . . . . . 1 . . . . . . . . . Machines Repaired . | . . . . . . . . . . . . . . . . Machines Dismantled . | . . . . . . . . . . . . . . . . Machines Sabotaged . | . . . . . . . . . . . . . . . . Overloaded Fab Kills . | . . . . . . . . . . . . . . . . Hacking | -11 -10 -10 -10 -9 -8 -7 -6 -6 -6 -6 -5 -5 -4 -3 -3 --------- Run | Yrd Mat Min Exi Min Mat Fac Fac Low Low Dat Pro Fac Fac Res Qua Machines Accessed 37 | . 5 . 1 . 2 10 . 1 . 4 . 4 3 6 1 Terminals 14 | . 3 . . . 1 5 . . . . . 1 2 2 . Fabricators 6 | . . . . . . 2 . . . . . 3 . 1 . Repair Stations 1 | . . . . . . 1 . . . . . . . . . Recycling Units 4 | . 2 . . . . 1 . . . . . . 1 . . Scanalyzers 4 | . . . . . 1 . . . . . . . . 2 1 Garrison Access 2 | . . . . . . 1 . . . . . . . 1 . Total Hacks 91 | . 11 . 1 . 2 18 . 1 . 28 . 7 8 14 1 Successful 58 | . 5 . 1 . 2 11 . 1 . 28 . 2 3 5 . Failed 33 | . 6 . . . . 7 . . . . . 5 5 9 1 Catastrophic 7 | . 2 . . . . 1 . . . . . 1 . 3 . Database Lockouts . | . . . . . . . . . . . . . . . . Manual 28 | . 9 . . . . 10 . . . . . 1 6 2 . Terminals 33 | . 9 . . . 1 11 . . . . . 2 6 4 . Fabricators 10 | . . . . . . 2 . . . . . 5 . 3 . Repair Stations 2 | . . . . . . 2 . . . . . . . . . Recycling Units 6 | . 2 . . . . 2 . . . . . . 2 . . Scanalyzers 8 | . . . . . 1 . . . . . . . . 6 1 Garrison Access 2 | . . . . . . 1 . . . . . . . 1 . Terminal Hacks 37 | . 3 . 1 . 1 . . 1 . 28 . 2 . 1 . Record 12 | . . . 1 . . . . . . 11 . . . . . Part Schematic 9 | . 1 . . . . . . . . 8 . . . . . Robot Schematic 6 | . . . . . . . . . . 6 . . . . . Prototype ID Bank 4 | . . . . . 1 . . . . 3 . . . . . Open Door 2 | . . . . . . . . 1 . . . . . 1 . Alert Level 1 | . . . . . . . . . . . . 1 . . . Unreport Threat 2 | . 1 . . . . . . . . . . 1 . . . Locate Traps 1 | . 1 . . . . . . . . . . . . . . Fabricator Hacks 3 | . . . . . . 2 . . . . . . . 1 . Network Status 2 | . . . . . . 2 . . . . . . . . . Build 1 | . . . . . . . . . . . . . . 1 . Repair Station Hacks 2 | . . . . . . 2 . . . . . . . . . Scan Component 1 | . . . . . . 1 . . . . . . . . . Repair 1 | . . . . . . 1 . . . . . . . . . Recycling Unit Hacks 3 | . 2 . . . . . . . . . . . 1 . . Report Inventory 3 | . 2 . . . . . . . . . . . 1 . . Scanalyzer 4 | . . . . . 1 . . . . . . . . 3 . Retrieve Study 4 | . . . . . 1 . . . . . . . . 3 . Garrison Access Hacks 1 | . . . . . . 1 . . . . . . . . . Seal Access 1 | . . . . . . 1 . . . . . . . . . Unauthorized Hacks 8 | . . . . . . 6 . . . . . . 2 . . Terminals 8 | . . . . . . 6 . . . . . . 2 . . Botnet 7 | . . . . . . 5 . . . . . . 2 . . Skim 1 | . . . . . . 1 . . . . . . . . . Fabricators . | . . . . . . . . . . . . . . . . Repair Stations . | . . . . . . . . . . . . . . . . Recycling Units . | . . . . . . . . . . . . . . . . Scanalyzers . | . . . . . . . . . . . . . . . . Garrison Access . | . . . . . . . . . . . . . . . . Data Cores Recovered . | . . . . . . . . . . . . . . . . Used . | . . . . . . . . . . . . . . . . Hacking Detections 24 | . 2 . . . 1 7 . . . . . 4 3 6 1 Full Trace Events . | . . . . . . . . . . . . . . . . Feedback Events . | . . . . . . . . . . . . . . . . Feedback Blocked . | . . . . . . . . . . . . . . . . Robot Schematics Acquired 6 | . . . . . . . . . . 6 . . . . . Robots Built 2 | . . . . . . . . . . . . . . 2 . Authchips 1 | . . . . . . . . . . . . . . 1 . Time 62 | . . . . . . . . . . . . . . 62 . Total Robot Build Rating 14 | . . . . . . . . . . . . . . 14 . Part Schematics Acquired 9 | . 1 . . . . . . . . 8 . . . . . Parts Built . | . . . . . . . . . . . . . . . . Authchips . | . . . . . . . . . . . . . . . . Time . | . . . . . . . . . . . . . . . . Total Part Build Rating . | . . . . . . . . . . . . . . . . Part Studies Acquired 4 | . . . . . 1 . . . . . . . . 3 . Parts Repaired 1 | . . . . . . 1 . . . . . . . . . Time 13 | . . . . . . 13 . . . . . . . . . Parts Recycled . | . . . . . . . . . . . . . . . . Recycled Matter . | . . . . . . . . . . . . . . . . Retrieved Matter . | . . . . . . . . . . . . . . . . Retrieved Components . | . . . . . . . . . . . . . . . . Parts Scanalyzed . | . . . . . . . . . . . . . . . . Part Schematics Acquired . | . . . . . . . . . . . . . . . . Parts Damaged . | . . . . . . . . . . . . . . . . Bothacking | -11 -10 -10 -10 -9 -8 -7 -6 -6 -6 -6 -5 -5 -4 -3 -3 ------------ Run | Yrd Mat Min Exi Min Mat Fac Fac Low Low Dat Pro Fac Fac Res Qua Used RIF Installer . | . . . . . . . . . . . . . . . . Robots Hacked . | . . . . . . . . . . . . . . . . Non-combat . | . . . . . . . . . . . . . . . . Combat . | . . . . . . . . . . . . . . . . Robot Hacks Applied . | . . . . . . . . . . . . . . . . Relay Couplers Released . | . . . . . . . . . . . . . . . . Fabnet Peak Effective % . | . . . . . . . . . . . . . . . . Robots Rewired 2 | . . . . . . . . 2 . . . . . . . Allies Hacked 2 | . . . . . . . . . . . . . . 1 1 Hacks Repelled . | . . . . . . . . . . . . . . . . Allies | -11 -10 -10 -10 -9 -8 -7 -6 -6 -6 -6 -5 -5 -4 -3 -3 -------- Run | Yrd Mat Min Exi Min Mat Fac Fac Low Low Dat Pro Fac Fac Res Qua Total Allies 16 | . . . . 3 . 3 . 2 . . . 1 1 2 4 Largest Group 4 | . . . . 3 3 3 . 2 . . . 1 1 2 4 Highest-Rated Group 256 | . . . . 40 40 96 . 61 . . . 79 65 136 256 Highest-Rated Ally 79 | . . . . 16 16 32 . 32 . . . 79 65 68 64 Total Orders . | . . . . . . . . . . . . . . . . Ally Attacks 81 | . . . . . 22 11 . 21 . . . 8 . 3 16 Total Damage 2299 | . . . . . 211 477 . 453 . . . 383 . 201 574 Kills 15 | . . . . . 2 5 . 4 . . . 2 . 1 1 Allies Corrupted 1 | . . . . . . . . . . . . . . 1 . Allies Melted . | . . . . . . . . . . . . . . . . X0-1V1 Amusement Gains 248 | . 14 10 . . 5 20 10 . . . 3 25 15 82 64 Good Acts 49 | . 2 1 . 1 3 6 1 1 4 . 7 4 2 8 9 Bad Acts 73 | . 4 4 . 1 4 17 2 8 1 . 1 6 9 11 5 Intel | -11 -10 -10 -10 -9 -8 -7 -6 -6 -6 -6 -5 -5 -4 -3 -3 ------- Run | Yrd Mat Min Exi Min Mat Fac Fac Low Low Dat Pro Fac Fac Res Qua Active Infowar (turns) 7185 | 4 252 326 413 196 455 989 . 1054 668 140 770 751 973 161 33 Optics 3707 | . . . . . . . . 1054 668 140 770 621 454 . . Terrain 826 | . . . . . . . . . . . . . 665 161 . Seismic 2635 | 4 252 326 413 196 455 989 . . . . . . . . . T.N.C. 2 | . . . . . . . . . . . . . 2 . . Cloaking 727 | . . . . . . . . . . . . 201 526 . . Spoofing 33 | . . . . . . . . . . . . . . . 33 Robot Analysis Total . | . . . . . . . . . . . . . . . . Derelict Logs Recovered 4 | . . . . . . . . 2 1 . 1 . . . . Drone Launches . | . . . . . . . . . . . . . . . . Drone Recoveries . | . . . . . . . . . . . . . . . . Exploration | -11 -10 -10 -10 -9 -8 -7 -6 -6 -6 -6 -5 -5 -4 -3 -3 ------------- Run | Yrd Mat Min Exi Min Mat Fac Fac Low Low Dat Pro Fac Fac Res Qua Turns Passed 11980 | 73 850 326 413 196 455 1500 621 1088 668 140 770 820 977 2428 655 Spaces Moved 6411 | 50 495 187 234 82 158 852 329 627 428 97 466 425 416 1049 516 Core 6 | 4 . . . . . . . . . . . . . . 2 Treads 1282 | . 292 187 234 82 158 262 . . 4 . . . . 63 . Legs 1328 | . . . . . . . . . . . . . . 901 427 Wheels 3790 | 46 203 . . . . 590 329 627 424 97 466 425 416 80 87 Hover 5 | . . . . . . . . . . . . . . 5 . Flight . | . . . . . . . . . . . . . . . . Fastest Speed 50 | 50 95 160 160 240 160 130 145 145 145 145 125 125 145 110 100 Average Speed 147 | 86 133 160 176 240 160 139 145 145 145 145 143 144 152 171 107 Slowest Speed 320 | 95 160 160 240 240 160 160 145 145 240 145 145 210 225 320 130 Overloaded Moves . | . . . . . . . . . . . . . . . . Propulsion Burnouts . | . . . . . . . . . . . . . . . . Robots Hopped . | . . . . . . . . . . . . . . . . Potential Cave-ins . | . . . . . . . . . . . . . . . . Cave-ins Triggered . | . . . . . . . . . . . . . . . . Exploration Rate (%) 42 | 4 65 63 55 30 19 21 11 72 64 79 78 15 14 24 61 Regions Visited 15 Branch Regions 8 Pre-discovered Areas 2 | . . . 1 . . . . . . 1 . . . . . Known Exits Taken 5 | . . . . . . 1 . . 1 . 1 1 . 1 . Unknown Exits Taken 10 | 1 1 1 1 1 1 . 1 1 . 1 . . 1 . . Scrap Searched 13 | . . . . 1 . . . 4 4 . 4 . . . . Spaces Dug 30 | . . . . . . 2 2 9 . . . 5 2 10 . Terrain Destroyed 523 | . . 12 . . 16 2 11 47 23 . 173 48 70 98 23 Melee 7 | . . . . . . 2 1 . . . . . . 4 . Projectile 197 | . . . . . . . 10 14 6 . 7 31 51 78 . AOE 319 | . . 12 . . 16 . . 33 17 . 166 17 19 16 23 Terrain Rammed . | . . . . . . . . . . . . . . . . Walls Destroyed . | . . . . . . . . . . . . . . . . Machines Disabled . | . . . . . . . . . . . . . . . . Actions | -11 -10 -10 -10 -9 -8 -7 -6 -6 -6 -6 -5 -5 -4 -3 -3 --------- Run | Yrd Mat Min Exi Min Mat Fac Fac Low Low Dat Pro Fac Fac Res Qua Total 8046 | 68 598 199 235 82 304 1070 444 764 449 96 528 564 598 1458 589 Wait 555 | 2 21 . . . 98 65 69 25 1 . 6 65 59 129 15 Move 6396 | 49 494 186 233 81 157 851 328 626 427 96 465 424 415 1048 516 Hop . | . . . . . . . . . . . . . . . . Pick Up 98 | 6 13 . . . 7 20 8 4 2 . 5 4 8 19 2 Fast Attach 68 | 7 1 1 . . 2 10 2 2 . . . 5 9 21 8 Attach 80 | . 3 . . . 5 9 3 4 2 . 2 9 5 29 9 Detach 45 | . . . . . . 6 2 5 . . . 4 5 17 6 Swap 78 | . 5 4 1 1 2 22 1 6 2 . 10 3 9 12 . Drop 67 | . 10 . 1 . . 25 4 7 . . 4 1 3 12 . Fire 564 | 4 50 7 . . 33 45 25 42 15 . 29 49 77 164 24 Melee 16 | . . . . . . 6 2 1 . . . . . 5 2 Ram 6 | . . . . . . 2 . . . . . . . . 4 Kick 5 | . . . . . . . . . . . . . . 2 3 Crush 3 | . 1 1 . . . 1 . . . . . . . . . Escape Stasis 23 | . . . . . . 8 . . . . 7 . 8 . . Rewire 42 | . . . . . . . . 42 . . . . . . . Trap . | . . . . . . . . . . . . . . . . Miscellaneous . | . . . . . . . . . . . . . . . . Route ------- -11/Scrapyard -10/Materials (discovered 3 exits: [*Mat] / [*Min] / [*Sub]) -10/Mines (discovered 3 exits: [*Mat x2] / *Exi) -10/Exiles -9/Mines -8/Materials -7/Factory (discovered 3 exits: *Fac x3) -6/Factory (discovered 2 exits: *Fac / *Low) -6/Lower Caves -6/Lower Caves (discovered 2 exits: *Fac / *Dat) -6/Data Miner -5/Proximity Caves -5/Factory -4/Factory -3/Research -3/Quarantine (discovered 1 exit: [*Res]) History --------- Turn | Location | Event 7 | -11/Scrapyard | Discovered new exit (range 15) 74 | -11/Scrapyard | Entered Materials 166 | -10/Materials | Discovered new exit (range 10) 167 | -10/Materials | Discovered new exit (range 4) 200 | -10/Materials | Prayed at D.C.S.S. Altar Unit 318 | -10/Materials | Build established: Mutant 782 | -10/Materials | Discovered new exit (range 13) 796 | -10/Materials | Utility slot count permanently improved by X0-1V1 (+1) 924 | -10/Materials | Entered Mines 934 | -10/Mines | X0-1V1 sent you into danger 939 | -10/Mines | Discovered new exit (range 8) 1034 | -10/Mines | Discovered new exit (range 8) 1244 | -10/Mines | Deemed a non-threat by the Exiles lab entrance 1244 | -10/Mines | Discovered new exit (range 5) 1250 | -10/Mines | Entered Exiles 1278 | -10/Exiles | Build established: Scavenger-Mutant 1290 | -10/Exiles | Met 8R-AWN 1316 | -10/Exiles | Met EX-HEX 1433 | -10/Exiles | Met EX-DEC 1458 | -10/Exiles | Learned location of Zion (-7) 1634 | -10/Exiles | Discovered new exit (range 14) 1663 | -10/Exiles | Entered Mines 1673 | -9/Mines | Assisted by bots powering up and referring to "LRC-V3" 1800 | -9/Mines | X0-1V1 activates XOMVISION 1833 | -9/Mines | Discovered new exit (range 13) 1859 | -9/Mines | Entered Materials 1859 | -8/Materials | Accompanied by 3 allies 1859 | -8/Materials | Evolved 4 slots: Propulsion x2, Utility x1, Weapon x1 1944 | -8/Materials | Lost 3 allies 2016 | -8/Materials | Energy generation permanently improved by X0-1V1 (+15; -150 max core) 2199 | -8/Materials | Build established: Scavenger-Gunner 2290 | -8/Materials | Lost 3 parts (1n2w) 2290 | -8/Materials | Discovered new exit (range 15) 2314 | -8/Materials | Entered Factory 2314 | -7/Factory | Evolved 2 slots: Power x1, Utility x1 2431 | -7/Factory | Discovered new exit (range 11) 2447 | -7/Factory | X0-1V1 activates XOMVISION 2617 | -7/Factory | Build established: Scavenger-Tank 2703 | -7/Factory | Discovered new exit (range 15) 2732 | -7/Factory | X0-1V1 sent hostile G-47 Trooper (x3) 3038 | -7/Factory | Identified exit to Factory 3038 | -7/Factory | X0-1V1 revealed exit location to -6/Factory 3179 | -7/Factory | Repaired Lgt. Treads+ 3259 | -7/Factory | Heat dissipation permanently improved by X0-1V1 (+20; -100 max core) 3334 | -7/Factory | Sensors blinded by X0-1V1 3417 | -7/Factory | X0-1V1 sent hostile Y-45 Defender (x1) 3431 | -7/Factory | X0-1V1 added 0b10 threat records associated with you (minor) 3439 | -7/Factory | X0-1V1 sent you to a vault 3440 | -7/Factory | X0-1V1 redirected Transport squads to designated parking area 3443 | -7/Factory | X0-1V1 rewrote Guardian 4c IFF filter 3611 | -7/Factory | System corruption reached 10% 3677 | -7/Factory | Weapon slot count temporarily expanded by X0-1V1 (+1) 3814 | -7/Factory | Entered another Factory area 3814 | -6/Factory | Evolved 2 slots: Utility x2 3982 | -6/Factory | Build established: Tank 4038 | -6/Factory | Discovered new exit (range 15) 4316 | -6/Factory | Discovered new exit (range 6) 4322 | -6/Factory | X0-1V1 announced a LAN party 4435 | -6/Factory | Entered Lower Caves 4454 | -6/Lower Caves | Learned Factory interactive machine intel 4499 | -6/Lower Caves | X0-1V1 sent hostile H-66 Slayer (x3) 4535 | -6/Lower Caves | Learned Factory stockpile data 4671 | -6/Lower Caves | Attracted the attention of an 0b10 outpost 4707 | -6/Lower Caves | Destroyed 9 combat bots 5391 | -6/Lower Caves | X0-1V1 rewrote Guardian 5a IFF filter 5396 | -6/Lower Caves | X0-1V1 vaporized surrounding terrain (radius 22) 5456 | -6/Lower Caves | Discovered new exit (range 20) 5523 | -6/Lower Caves | Entered another Lower Caves area 5523 | -6/Lower Caves | Accompanied by 1 ally 5777 | -6/Lower Caves | Discovered new exit (range 18) 6072 | -6/Lower Caves | Identified exit to Data Miner 6072 | -6/Lower Caves | X0-1V1 revealed exit location to -6/Data Miner 6120 | -6/Lower Caves | X0-1V1 activates XOMVISION 6191 | -6/Lower Caves | Entered Data Miner 6191 | -6/Data Miner | Discovered new exit (range 6) 6210 | -6/Data Miner | Met Data Miner 6255 | -6/Data Miner | Learned location of Section 7 (-2) 6255 | -6/Data Miner | Acquired the access code to Warlord's prototype stash 6276 | -6/Data Miner | Received God Mode back door access code from Data Miner 6331 | -6/Data Miner | Entered Proximity Caves 6672 | -5/Proximity Caves | Identified exit to Factory 6672 | -5/Proximity Caves | X0-1V1 revealed exit location to -5/Factory 6706 | -5/Proximity Caves | X0-1V1 activates XOMVISION 6803 | -5/Proximity Caves | Learned location of 1 exit from Factory 6932 | -5/Proximity Caves | Forcibly received Sfc. Transmogifier from X0-1V1 6985 | -5/Proximity Caves | X0-1V1 activates XOMVISION 7030 | -5/Proximity Caves | Attracted the attention of an 0b10 checkpoint 7101 | -5/Proximity Caves | Entered Factory 7101 | -5/Factory | Evolved 2 slots: Utility x2 7102 | -5/Factory | Identified exit to Factory 7104 | -5/Factory | Loaded intel: 53 interactive machine locations 7402 | -5/Factory | Destroyed 9 combat bots 7447 | -5/Factory | Weapon slot count temporarily expanded by X0-1V1 (+2) 7567 | -5/Factory | X0-1V1 added 0b10 threat records associated with you (minor) 7692 | -5/Factory | X0-1V1 foreshadows a heat wave 7700 | -5/Factory | X0-1V1 sent allied Knight (x1) 7733 | -5/Factory | Hvy. Mass Driver reconfigured into Item Mimic 7913 | -5/Factory | Ambient heat levels rising (+10) 7921 | -5/Factory | Entered another Factory area 7921 | -4/Factory | Accompanied by 1 ally 7921 | -4/Factory | Evolved 2 slots: Utility x2 7966 | -4/Factory | X0-1V1 sent you into danger 8099 | -4/Factory | X0-1V1 added 0b10 threat records associated with you (considerable) 8114 | -4/Factory | X0-1V1 sent hostile Thug (x3) 8328 | -4/Factory | Found Fusion Bomb Launcher 8508 | -4/Factory | Discovered new exit (range 20) 8638 | -4/Factory | X0-1V1 announced a LAN party 8709 | -4/Factory | X0-1V1 turns hostiles against one another 8745 | -4/Factory | System corruption reached 10% 8805 | -4/Factory | X0-1V1 sent you into danger 8898 | -4/Factory | Entered Research 8898 | -3/Research | Evolved 2 slots: Propulsion x2 9090 | -3/Research | Lost 3 parts (1n2u) 9116 | -3/Research | Build established: Gunner 9263 | -3/Research | Fabricated X-77 Beamer? 9480 | -3/Research | Found Prototype Processor 9480 | -3/Research | Identified Exp. Targeting Computer 9525 | -3/Research | System corruption reached 10% 9982 | -3/Research | X0-1V1 sent you into danger 10189 | -3/Research | Found Heavy Servo Lattice 10193 | -3/Research | Found Heavy Servo Lattice 10271 | -3/Research | Found Powered Armor 10444 | -3/Research | X0-1V1 activates XOMVISION 10471 | -3/Research | X0-1V1 announced a LAN party 10502 | -3/Research | Identified exit to Quarantine 10502 | -3/Research | X0-1V1 revealed exit location to -3/Quarantine 10518 | -3/Research | X0-1V1 enhanced Transport squad support 10723 | -3/Research | System corruption reached 30% 11292 | -3/Research | Mass Driver reconfigured into Item Mimic 11310 | -3/Research | Core integrity fell below 50% 11326 | -3/Research | Entered Quarantine 11352 | -3/Quarantine | Lost 12 parts (1p2n4u5w) 11401 | -3/Quarantine | X0-1V1 announced a LAN party 11524 | -3/Quarantine | Build established: Mutant 11524 | -3/Quarantine | Lost 3 parts (1n1u1w) 11534 | -3/Quarantine | Core integrity fell below 20% 11548 | -3/Quarantine | X0-1V1 sent you to a vault 11573 | -3/Quarantine | Lost 4 parts (2n2u) 11647 | -3/Quarantine | X0-1V1 turns hostiles against one another 11692 | -3/Quarantine | Lost 4 allies 11736 | -3/Quarantine | X0-1V1 rescued you from certain death 11912 | -3/Quarantine | Found Prototype Device 11912 | -3/Quarantine | Identified Exp. EM Disruption Field 11966 | -3/Quarantine | Discovered new exit (range 7) 11981 | -3/Quarantine | Destroyed by G-67 Veteran with Plasma Rifle Last Messages --------------- 11942_ Biometal Medium Treads destroyed. 11946_ Door malfunctions. 11948_ Sfc. Transmogrifier converts Adv. Thermal Shield into Active Sensor Spoofer. 11948_ System corrupted: Exp. EM Disruption Field rejected. 11948_ Acquired Exp. EM Disruption Field. 11949_ Biometal Leg+ destroyed. 11950_ Hyb. Antimatter Reactor+ destroyed. 11961_ X0-1V1's Piety Tracker destroyed. 11961_ X0-1V1 is mildly amused. 11964_ O-32 Director: "IFF HANDSHAKE FAILED. SECURING TERMINAL." 11965_ 49DDR17 QQRRU R/SDT7